fUST/lending_fUST_20250819
["ID","MTS","AMOUNT","RATE_DAILY","PERIOD"]
[380142911,1755573045024,-480.0,0.00019726,2]
[380142912,1755573045034,-480.0,0.00019726,2]
[380142913,1755573045043,-151.0,0.00019726,2]
[380142914,1755573045052,-480.0,0.00019726,2]
[380142915,1755573045062,-151.0,0.00019726,2]
[380142916,1755573045071,-335.358325,0.00019726,2]
[380142917,1755573045080,-480.0,0.00019726,2]
[380142918,1755573045089,-593.14,0.00019726,2]
[380142919,1755573045098,-151.0,0.00019726,2]
[380142920,1755573045108,-151.0,0.00019726,2]
[380142921,1755573045117,-335.358325,0.00019726,2]
[380142922,1755573045126,-663.13,0.00019726,2]
[380142923,1755573045135,-151.0,0.00019726,2]
[380142924,1755573045144,-151.0,0.00019726,2]
[380142925,1755573045154,-480.0,0.00019726,2]
[380142926,1755573045163,-480.0,0.00019726,2]
[380142927,1755573045172,-151.0,0.00019726,2]
[380142928,1755573045181,-151.0,0.00019726,2]
[380142929,1755573045190,-210.452597,0.00019726,2]
[380142930,1755573045199,-480.0,0.00019726,2]
[380142931,1755573045209,-151.0,0.00019726,2]
[380142932,1755573045218,-675.11,0.00019726,2]
[380142933,1755573045227,-480.0,0.00019726,2]
[380142934,1755573045237,-151.0,0.00019726,2]
[380142935,1755573045248,-480.0,0.00019726,2]
[380142936,1755573045257,-480.0,0.00019726,2]
[380142937,1755573045266,-480.0,0.00019726,2]
[380142938,1755573045275,-210.452597,0.00019726,2]
[380142939,1755573045284,-651.9,0.00019726,2]
[380142940,1755573045293,-494.45,0.00019726,2]
[380142941,1755573045302,-480.0,0.00019726,2]
[380142942,1755573045310,-151.0,0.00019726,2]
[380142943,1755573045320,-960.93,0.00019726,2]
[380142944,1755573045329,-480.0,0.00019726,2]
[380142945,1755573045338,-429.47,0.00019726,2]
[380142946,1755573045347,-480.0,0.00019726,2]
[380142947,1755573045357,-955.61,0.00019726,2]
[380142948,1755573045366,-480.0,0.00019726,2]
[380142949,1755573045380,-2155.72,0.00019726,2]
[380142951,1755573045390,-927.52,0.00019726,2]
[380142952,1755573045399,-577.41867385,0.00019726,2]
[380142953,1755573045409,-480.0,0.00019726,2]
[380142954,1755573045418,-1426.67,0.00019726,2]
[380142955,1755573045427,-151.0,0.00019726,2]
[380142956,1755573045436,-526.40821308,0.00019726,2]
[380142957,1755573045447,-480.0,0.00019726,2]
[380142958,1755573045457,-151.0,0.00019726,2]
[380142959,1755573045466,-582.03,0.00019726,2]
[380142960,1755573045475,-976.54,0.00019726,2]
[380142961,1755573045484,-712.04,0.00019726,2]
[380142962,1755573045494,-653.79,0.00019726,2]
[380142963,1755573045503,-480.0,0.00019726,2]
[380142964,1755573045512,-1664.25,0.00019726,2]
[380142965,1755573045523,-480.0,0.00019726,2]
[380142966,1755573045532,-191.37979236,0.00019726,2]
[380142967,1755573045541,-480.0,0.00019726,2]
[380142969,1755573045550,-532.395296,0.00019726,2]
[380142971,1755573045559,-5114.43,0.00019726,2]
[380142973,1755573045569,-532.395296,0.00019726,2]
[380142975,1755573045578,-1977.8,0.00019726,2]
[380142977,1755573045587,-1069.37,0.00019726,2]
[380142979,1755573045597,-1909.96,0.00019726,2]
[380142981,1755573045607,-480.0,0.00019726,2]
[380142983,1755573045616,-3233.99,0.00019726,2]
[380142985,1755573045626,-480.0,0.00019726,2]
[380142987,1755573045635,-494.65,0.00019726,2]
[380142989,1755573045644,-480.0,0.00019726,2]
[380142991,1755573045653,-1626.15,0.00019726,2]
[380142993,1755573045664,-480.0,0.00019726,2]
[380142995,1755573045673,-480.0,0.00019726,2]
[380142997,1755573045687,-882.27,0.00019726,2]
[380142999,1755573045696,-480.0,0.00019726,2]
[380143001,1755573045705,-542.15239909,0.00019726,2]
[380143003,1755573045714,-480.0,0.00019726,2]
[380143005,1755573045724,-540.86,0.00019726,2]
[380143007,1755573045733,-2411.02,0.00019726,2]
[380143009,1755573045744,-909.71,0.00019726,2]
[380143011,1755573045753,-480.0,0.00019726,2]
[380143013,1755573045763,-480.0,0.00019726,2]
[380143015,1755573045772,-480.0,0.00019726,2]
[380143017,1755573045781,-480.0,0.00019726,2]
[380143019,1755573045791,-480.0,0.00019726,2]
[380143021,1755573045800,-480.0,0.00019726,2]
[380143023,1755573045810,-559.74,0.00019726,2]
[380143025,1755573045819,-480.0,0.00019726,2]
[380143027,1755573045829,-480.0,0.00019726,2]
[380143029,1755573045839,-480.0,0.00019726,2]
[380143031,1755573045848,-480.0,0.00019726,2]
[380143033,1755573045859,-887.99,0.00019726,2]
[380143035,1755573045868,-480.0,0.00019726,2]
[380143037,1755573045878,-480.0,0.00019726,2]
[380143039,1755573045887,-413.03631376,0.00019726,2]
[380143050,1755573045968,-575.58,0.00019726,2]
[380143052,1755573045987,-1987.21,0.00019726,2]
[380143054,1755573045996,-6405.06,0.00019726,2]
[380143056,1755573046005,-860.52,0.00019726,2]
[380143058,1755573046015,-810.59,0.00019726,2]
[380143060,1755573046023,-481.14141881,0.00019726,2]
[380143062,1755573046033,-728.69,0.00019726,2]
[380143064,1755573046043,-690.18,0.00019726,2]
[380143066,1755573046052,-480.0,0.00019726,2]
[380143068,1755573046062,-1039.74,0.00019726,2]
[380143069,1755573046071,-480.0,0.00019726,2]
[380143071,1755573046080,-480.0,0.00019726,2]
[380143073,1755573046089,-480.0,0.00019726,2]
[380143075,1755573046098,-480.0,0.00019726,2]
[380143077,1755573046107,-2436.12,0.00019726,2]
[380143079,1755573046116,-480.0,0.00019726,2]
[380143081,1755573046126,-480.0,0.00019726,2]
[380143083,1755573046135,-480.0,0.00019726,2]
[380143086,1755573046146,-941.31,0.00019726,2]
[380143088,1755573046155,-547.86,0.00019726,2]
[380143090,1755573046163,-305.59694148,0.00019726,2]
[380143091,1755573046172,-653.19,0.00019726,2]
[380143093,1755573046181,-2633.5,0.00019726,2]
[380143095,1755573046192,-712.5,0.00019726,2]
[380143097,1755573046201,-3869.68,0.00019726,2]
[380143099,1755573046210,-480.0,0.00019726,2]
[380143101,1755573046222,-480.0,0.00019726,2]
[380143103,1755573046231,-480.0,0.00019726,2]
[380143105,1755573046240,-153.69254,0.00019726,2]
[380143107,1755573046250,-480.0,0.00019726,2]
[380143109,1755573046259,-491.22,0.00019726,2]
[380143111,1755573046268,-1131.68,0.00019726,2]
[380143113,1755573046277,-500.0,0.00019726,2]
[380143115,1755573046286,-155.0,0.00019775,2]
[380143117,1755573046296,-155.0,0.00019775,2]
[380143119,1755573046304,-180.19289865,0.00019775,2]
[380143121,1755573046314,-326.0,0.00019775,2]
[380143123,1755573046323,-326.0,0.00019775,2]
[380143125,1755573046333,-326.0,0.00019775,2]
[380143127,1755573046342,-326.0,0.00019775,2]
[380143129,1755573046352,-326.0,0.00019775,2]
[380143131,1755573046363,-326.0,0.00019775,2]
[380143133,1755573046381,-326.0,0.00019775,2]
[380143135,1755573046391,-326.0,0.00019775,2]
[380143137,1755573046401,-326.0,0.00019775,2]
[380143139,1755573046412,-326.0,0.00019775,2]
[380143141,1755573046421,-326.0,0.00019775,2]
[380143143,1755573046431,-326.0,0.00019775,2]
[380143145,1755573046442,-326.0,0.00019775,2]
[380143147,1755573046452,-326.0,0.00019775,2]
[380143149,1755573046463,-203.25529554,0.0001982,2]
[380143151,1755573046472,-1762.0,0.0001982,2]
[380143153,1755573046482,-1762.0,0.0001982,2]
[380143155,1755573046491,-1762.0,0.0001982,2]
[380143157,1755573046501,-1762.0,0.0001982,2]
[380143159,1755573046510,-1633.77047188,0.0001982,2]
[380143161,1755573046519,-633.579,0.0001984,2]
[380143163,1755573046529,-151.0,0.00019841,2]
[380143165,1755573046538,-151.203046,0.00019841,2]
[380143167,1755573046549,-164.930769,0.00019841,2]
[380143169,1755573046558,-151.0,0.00019841,2]
[380143171,1755573046567,-164.930769,0.00019841,2]
[380143173,1755573046576,-151.0,0.00019841,2]
[380143175,1755573046585,-151.0,0.00019841,2]
[380143177,1755573046594,-151.0,0.00019841,2]
[380143179,1755573046603,-359.906206,0.00019841,2]
[380143181,1755573046612,-359.906206,0.00019841,2]
[380143183,1755573046622,-151.0,0.00019841,2]
[380143185,1755573046631,-151.0,0.00019841,2]
[380143187,1755573046640,-151.0,0.00019841,2]
[380143189,1755573046650,-167.480784,0.00019841,2]
[380143191,1755573046659,-151.0,0.00019841,2]
[380143193,1755573046668,-167.480784,0.00019841,2]
[380143195,1755573046678,-151.0,0.00019841,2]
[380143197,1755573046689,-151.287031,0.00019841,2]
[380143199,1755573046699,-295.548631,0.00019863,2]
[380143201,1755573046710,-189.718564,0.00019868,2]
[380143203,1755573046721,-179.71246006,0.00019873,2]
[380143205,1755573046730,-560.18484357,0.000199,2]
[380143207,1755573046739,-151.0,0.000199,2]
[380143209,1755573046750,-637.0,0.0001992,2]
[380143211,1755573046761,-2153.0,0.0001992,2]
[380143213,1755573046770,-285.03599955,0.0001993,2]
[380143215,1755573046781,-200.0,0.00019989,2]
[380143217,1755573046791,-151.0,0.0001999,2]
[380143219,1755573046801,-151.0,0.0001999,2]
[380143221,1755573046811,-151.0,0.0001999,2]
[380143223,1755573046821,-151.0,0.0001999,2]
[380143225,1755573046831,-151.0,0.0001999,2]
[380143227,1755573046840,-151.0,0.0001999,2]
[380143229,1755573046850,-151.0,0.0001999,2]
[380143231,1755573046861,-334.185117,0.0001999,2]
[380143233,1755573046870,-334.185117,0.0001999,2]
[380143235,1755573046879,-151.0,0.0001999,2]
[380143237,1755573046888,-151.0,0.0001999,2]
[380143239,1755573046898,-151.0,0.0001999,2]
[380143241,1755573046907,-151.0,0.0001999,2]
[380143243,1755573046916,-151.0,0.0001999,2]
[380143245,1755573046925,-532.395296,0.0001999,2]
[380143247,1755573046935,-151.0,0.0001999,2]
[380143249,1755573046945,-532.395296,0.0001999,2]
[380143251,1755573046954,-151.0,0.0001999,2]
[380143253,1755573046964,-151.0,0.0001999,2]
[380143255,1755573046974,-151.0,0.0001999,2]
[380143257,1755573046984,-151.0,0.0001999,2]
[380143259,1755573046994,-152.763255,0.0001999,2]
[380143261,1755573047003,-151.0,0.0001999,2]
[380143263,1755573047013,-151.0,0.0001999,2]
[380143265,1755573047022,-458.534596,0.0001999,2]
[380143267,1755573047032,-151.0,0.0001999,2]
[380143269,1755573047043,-1059.201726,0.0001999,2]
[380143271,1755573047054,-151.0,0.0001999,2]
[380143274,1755573047067,-455.408369,0.0001999,2]
[380143275,1755573047076,-1059.201726,0.0001999,2]
[380143278,1755573047086,-151.0,0.0001999,2]
[380143279,1755573047095,-455.408369,0.0001999,2]
[380143281,1755573047104,-458.534596,0.0001999,2]
[380143284,1755573047117,-151.0,0.0001999,2]
[380143286,1755573047137,-151.0,0.0001999,2]
[380143287,1755573047148,-151.0,0.0001999,2]
[380143289,1755573047157,-151.040936,0.0001999,2]
[380143292,1755573047167,-151.0,0.0001999,2]
[380143294,1755573047176,-151.0,0.0001999,2]
[380143296,1755573047185,-151.0,0.0001999,2]
[380143297,1755573047196,-152.044904,0.0001999,2]
[380143299,1755573047205,-151.0,0.0001999,2]
[380143301,1755573047214,-202.98289716,0.00019999,2]
[380143303,1755573047223,-783.2,0.00019999,2]
[380143305,1755573047232,-480.0,0.0002,2]
[380143307,1755573047242,-480.0,0.0002,2]
[380143309,1755573047251,-480.0,0.0002,2]
[380143311,1755573047260,-480.0,0.0002,2]
[380143313,1755573047270,-151.0,0.0002,2]
[380143315,1755573047279,-480.0,0.0002,2]
[380143317,1755573047288,-6716.15,0.0002,2]
[380143319,1755573047297,-485.87073938,0.0002,2]
[380143321,1755573047306,-151.0,0.0002,2]
[380143324,1755573047316,-534.48,0.0002,2]
[380143325,1755573047325,-151.0,0.0002,2]
[380143327,1755573047334,-151.0,0.0002,2]
[380143329,1755573047343,-1628.01,0.0002,2]
[380143331,1755573047352,-480.0,0.0002,2]
[380143333,1755573047362,-480.0,0.0002,2]
[380143336,1755573047374,-480.0,0.0002,2]
[380143338,1755573047384,-517.72,0.0002,2]
[380143340,1755573047393,-268.05658705,0.0002,2]
[380143342,1755573047402,-480.0,0.0002,2]
[380143344,1755573047412,-480.0,0.0002,2]
[380143346,1755573047422,-480.0,0.0002,2]
[380143348,1755573047431,-707.0,0.0002,2]
[380143350,1755573047441,-480.0,0.0002,2]
[380143352,1755573047452,-151.0,0.0002,2]
[380143354,1755573047462,-510.74407931,0.0002,2]
[380143356,1755573047471,-689.35,0.0002,2]
[380143358,1755573047480,-480.0,0.0002,2]
[380143360,1755573047489,-480.0,0.0002,2]
[380143362,1755573047498,-480.0,0.0002,2]
[380143364,1755573047508,-480.0,0.0002,2]
[380143366,1755573047517,-480.0,0.0002,2]
[380143368,1755573047527,-480.0,0.0002,2]
[380143370,1755573047536,-2793.31,0.0002,2]
[380143372,1755573047547,-480.0,0.0002,2]
[380143374,1755573047556,-480.0,0.0002,2]
[380143376,1755573047565,-480.0,0.0002,2]
[380143378,1755573047575,-480.0,0.0002,2]
[380143380,1755573047584,-151.0,0.0002,2]
[380143382,1755573047594,-480.0,0.0002,2]
[380143384,1755573047603,-480.0,0.0002,2]
[380143386,1755573047612,-719.59,0.0002,2]
[380143388,1755573047621,-480.0,0.0002,2]
[380143390,1755573047631,-1120.53,0.0002,2]
[380143392,1755573047641,-480.0,0.0002,2]
[380143394,1755573047650,-562.43,0.0002,2]
[380143396,1755573047659,-480.0,0.0002,2]
[380143398,1755573047670,-480.0,0.0002,2]
[380143400,1755573047681,-480.0,0.0002,2]
[380143410,1755573047767,-480.0,0.0002,2]
[380143412,1755573047779,-480.0,0.0002,2]
[380143414,1755573047789,-480.0,0.0002,2]
[380143416,1755573047799,-480.0,0.0002,2]
[380143418,1755573047808,-487.08217191,0.0002,2]
[380143420,1755573047817,-359.906206,0.0002,2]
[380143422,1755573047827,-480.0,0.0002,2]
[380143424,1755573047836,-359.906206,0.0002,2]
[380143426,1755573047846,-480.0,0.0002,2]
[380143428,1755573047855,-151.0,0.0002,2]
[380143430,1755573047865,-836.35,0.0002,2]
[380143432,1755573047875,-480.0,0.0002,2]
[380143434,1755573047885,-480.0,0.0002,2]
[380143436,1755573047894,-225.938146,0.0002,2]
[380143438,1755573047903,-151.0,0.0002,2]
[380143440,1755573047912,-167.480784,0.0002,2]
[380143442,1755573047922,-151.0,0.0002,2]
[380143444,1755573047932,-167.480784,0.0002,2]
[380143446,1755573047942,-480.0,0.0002,2]
[380143448,1755573047951,-480.0,0.0002,2]
[380143450,1755573047962,-480.0,0.0002,2]
[380143452,1755573047971,-2003.27,0.0002,2]
[380143454,1755573047981,-480.0,0.0002,2]
[380143456,1755573047991,-151.0,0.0002,2]
[380143458,1755573048000,-509.81,0.0002,2]
[380143460,1755573048011,-480.0,0.0002,2]
[380143462,1755573048020,-853.16,0.0002,2]
[380143464,1755573048029,-480.0,0.0002,2]
[380143466,1755573048038,-480.0,0.0002,2]
[380143468,1755573048047,-151.0,0.0002,2]
[380143470,1755573048056,-151.37991338,0.0002,2]
[380143472,1755573048065,-151.0,0.0002,2]
[380143474,1755573048075,-151.0,0.0002,2]
[380143476,1755573048085,-480.0,0.0002,2]
[380143478,1755573048095,-151.0,0.0002,2]
[380143480,1755573048104,-151.0,0.0002,2]
[380143482,1755573048113,-151.12657096,0.0002,2]
[380143484,1755573048123,-1633.9,0.0002,2]
[380143486,1755573048132,-965.84,0.0002,2]
[380143488,1755573048142,-519.79,0.0002,2]
[380143490,1755573048152,-1023.57,0.0002,2]
[380143492,1755573048161,-885.580542,0.0002,2]
[380143494,1755573048172,-885.580542,0.0002,2]
[380143496,1755573048181,-151.0,0.0002,2]
[380143498,1755573048192,-480.0,0.0002,2]
[380143500,1755573048201,-445.5094028,0.0002,2]
[380143502,1755573048210,-480.0,0.0002,2]
[380143504,1755573048219,-480.0,0.0002,2]
[380143506,1755573048230,-151.0,0.0002,2]
[380143508,1755573048239,-480.0,0.0002,2]
[380143510,1755573048248,-151.0,0.0002,2]
[380143512,1755573048257,-335.358325,0.0002,2]
[380143514,1755573048267,-593.14,0.0002,2]
[380143516,1755573048276,-151.0,0.0002,2]
[380143518,1755573048286,-151.0,0.0002,2]
[380143520,1755573048295,-335.358325,0.0002,2]
[380143522,1755573048304,-663.13,0.0002,2]
[380143524,1755573048314,-151.0,0.0002,2]
[380143526,1755573048325,-242.05572297,0.0002,2]
[380143528,1755573048335,-151.0,0.0002,2]
[380143530,1755573048344,-480.0,0.0002,2]
[380143531,1755573048353,-480.0,0.0002,2]
[380143533,1755573048363,-151.0,0.0002,2]
[380143535,1755573048375,-210.452597,0.0002,2]
[380143537,1755573048385,-480.0,0.0002,2]
[380143539,1755573048395,-675.11,0.0002,2]
[380143541,1755573048404,-151.0,0.0002,2]
[380143543,1755573048415,-480.0,0.0002,2]
[380143545,1755573048424,-151.0,0.0002,2]
[380143547,1755573048433,-480.0,0.0002,2]
[380143549,1755573048445,-403.20127011,0.0002,2]
[380143551,1755573048455,-480.0,0.0002,2]
[380143553,1755573048465,-210.452597,0.0002,2]
[380143555,1755573048475,-651.9,0.0002,2]
[380143557,1755573048485,-494.45,0.0002,2]
[380143559,1755573048495,-480.0,0.0002,2]
[380143561,1755573048505,-960.93,0.0002,2]
[380143563,1755573048514,-415.00449974,0.0002,2]
[380143565,1755573048524,-151.0,0.0002,2]
[380143567,1755573048533,-365.34105043,0.0002,2]
[380143569,1755573048543,-955.61,0.0002,2]
[380143571,1755573048552,-480.0,0.0002,2]
[380143573,1755573048562,-2155.72,0.0002,2]
[380143574,1755573048572,-151.24868481,0.0002,2]
[380143575,1755573048582,-151.30909357,0.0002,2]
[380143576,1755573048592,-927.52,0.0002,2]
[380143577,1755573048601,-480.0,0.0002,2]
[380143578,1755573048610,-151.31795279,0.0002,2]
[380143579,1755573048620,-1426.67,0.0002,2]
[380143580,1755573048630,-480.0,0.0002,2]
[380143581,1755573048640,-582.03,0.0002,2]
[380143582,1755573048650,-976.54,0.0002,2]
[380143583,1755573048659,-712.04,0.0002,2]
[380143584,1755573048669,-653.79,0.0002,2]
[380143585,1755573048679,-480.0,0.0002,2]
[380143586,1755573048691,-1664.25,0.0002,2]
[380143587,1755573048700,-480.0,0.0002,2]
[380143588,1755573048710,-353.98046352,0.0002,2]
[380143589,1755573048719,-160.0,0.0002,3]
[380143590,1755573048728,-5114.43,0.0002,2]
[380143591,1755573048738,-1977.8,0.0002,2]
[380143592,1755573048747,-1069.37,0.0002,2]
[380143593,1755573048758,-1909.96,0.0002,2]
[380143594,1755573048767,-491.14911974,0.0002,2]
[380143595,1755573048777,-3233.99,0.0002,2]
[380143596,1755573048786,-480.0,0.0002,2]
[380143597,1755573048795,-494.65,0.0002,2]
[380143598,1755573048805,-480.0,0.0002,2]
[380143599,1755573048814,-1626.15,0.0002,2]
[380143600,1755573048824,-480.0,0.0002,2]
[380143601,1755573048833,-480.0,0.0002,2]
[380143602,1755573048843,-882.27,0.0002,2]
[380143603,1755573048852,-480.0,0.0002,2]
[380143604,1755573048861,-151.0,0.0002,2]
[380143605,1755573048871,-480.0,0.0002,2]
[380143607,1755573048881,-151.66294125,0.0002,2]
[380143609,1755573048890,-153.08576219,0.0002,2]
[380143611,1755573048900,-540.86,0.0002,2]
[380143613,1755573048909,-2411.02,0.0002,2]
[380143615,1755573048918,-909.71,0.0002,2]
[380143617,1755573048928,-480.0,0.0002,2]
[380143619,1755573048937,-494.54446467,0.0002,2]
[380143621,1755573048949,-480.0,0.0002,2]
[380143623,1755573048959,-480.0,0.0002,2]
[380143624,1755573048968,-449.18380249,0.0002,2]
[380143625,1755573048978,-480.0,0.0002,2]
[380143626,1755573048988,-559.74,0.0002,2]
[380143627,1755573048997,-647.0,0.0002,2]
[380143628,1755573049007,-480.0,0.0002,2]
[380143629,1755573049016,-480.0,0.0002,2]
[380143630,1755573049026,-480.0,0.0002,2]
[380143632,1755573049036,-887.99,0.0002,2]
[380143634,1755573049046,-480.0,0.0002,2]
[380143636,1755573049056,-480.0,0.0002,2]
[380143638,1755573049065,-575.58,0.0002,2]
[380143640,1755573049075,-1987.21,0.0002,2]
[380143642,1755573049085,-151.0,0.0002,2]
[380143644,1755573049094,-1059.201726,0.0002,2]
[380143646,1755573049105,-154.004068,0.0002,2]
[380143648,1755573049115,-1059.201726,0.0002,2]
[380143649,1755573049124,-6405.06,0.0002,2]
[380143650,1755573049134,-151.0,0.0002,2]
[380143651,1755573049143,-860.52,0.0002,2]
[380143652,1755573049153,-810.59,0.0002,2]
[380143653,1755573049163,-151.0,0.0002,2]
[380143654,1755573049173,-151.0,0.0002,2]
[380143655,1755573049183,-500.0,0.0002,2]
[380143656,1755573049195,-151.0,0.0002,2]
[380143657,1755573049206,-461.0,0.0002,2]
[380143658,1755573049216,-728.69,0.0002,2]
[380143659,1755573049224,-500.0,0.0002,2]
[380143660,1755573049234,-690.18,0.0002,2]
[380143661,1755573049245,-151.0,0.0002,2]
[380143662,1755573049255,-151.0,0.0002,2]
[380143663,1755573049264,-1039.74,0.0002,2]
[380143664,1755573049274,-480.0,0.0002,2]
[380143665,1755573049283,-277.42839859,0.0002,2]
[380143666,1755573049294,-500.0,0.0002,2]
[380143667,1755573049304,-480.0,0.0002,2]
[380143668,1755573049314,-582.9200745,0.0002,2]
[380143669,1755573049323,-151.0,0.0002,2]
[380143670,1755573049332,-415.42394743,0.0002,2]
[380143671,1755573049421,-484.19684791,0.0002,2]
[380143672,1755573049432,-2436.12,0.0002,2]
[380143673,1755573049442,-151.0,0.0002,2]
[380143674,1755573049451,-151.0,0.0002,2]
[380143675,1755573049461,-151.0,0.0002,2]
[380143676,1755573049470,-587.69090009,0.0002,2]
[380143677,1755573049479,-151.83173439,0.0002,2]
[380143678,1755573049488,-151.0,0.0002,2]
[380143679,1755573049498,-151.0,0.0002,2]
[380143680,1755573049507,-480.0,0.0002,2]
[380143681,1755573049516,-493.79179275,0.0002,2]
[380143682,1755573049526,-941.31,0.0002,2]
[380143683,1755573049535,-151.0,0.0002,2]
[380143684,1755573049544,-151.0,0.0002,2]
[380143685,1755573049554,-151.0,0.0002,2]
[380143686,1755573049563,-151.0,0.0002,2]
[380143687,1755573049573,-4000.0,0.0002,4]
[380143688,1755573049583,-151.0,0.0002,2]
[380143689,1755573049593,-151.0,0.0002,2]
[380143690,1755573049603,-151.21929453,0.0002,2]
[380143691,1755573049612,-547.86,0.0002,2]
[380143692,1755573049621,-151.0,0.0002,2]
[380143693,1755573049630,-500.0,0.0002,2]
[380143694,1755573049639,-653.19,0.0002,2]
[380143695,1755573049648,-260.26162087,0.0002,2]
[380143696,1755573049658,-151.27499779,0.0002,2]
[380143697,1755573049667,-2633.5,0.0002,2]
[380143698,1755573049676,-151.0,0.0002,2]
[380143699,1755573049685,-712.5,0.0002,2]
[380143700,1755573049696,-151.0,0.0002,2]
[380143701,1755573049705,-3869.68,0.0002,2]
[380143702,1755573049714,-151.0,0.0002,2]
[380143703,1755573049722,-480.0,0.0002,2]
[380143704,1755573049731,-480.0,0.0002,2]
[380143705,1755573049740,-480.0,0.0002,2]
[380143706,1755573049749,-206.17436885,0.0002,2]
[380143707,1755573049758,-151.0,0.0002,2]
[380143708,1755573049767,-500.0,0.0002,2]
[380143709,1755573049776,-480.0,0.0002,2]
[380143710,1755573049786,-500.0,0.0002,2]
[380143711,1755573049795,-491.22,0.0002,2]
[380143712,1755573049804,-151.0,0.0002,2]
[380143713,1755573049813,-1131.68,0.0002,2]
[380143714,1755573049822,-170.0,0.00020036,2]
[380143715,1755573049831,-221.098,0.00020046,2]
[380143716,1755573049840,-250.0,0.00020046,2]
[380143717,1755573049849,-261.317,0.00020046,2]
[380143718,1755573049858,-219.269,0.00020046,2]
[380143719,1755573049867,-972.0,0.00020046,2]
[380143720,1755573049876,-151.0,0.00020057,2]
[380143721,1755573049886,-151.0,0.00020057,2]
[380143722,1755573049895,-151.0,0.00020057,2]
[380143723,1755573049905,-532.395296,0.00020057,2]
[380143724,1755573049914,-532.395296,0.00020057,2]
[380143725,1755573049923,-3068.04534735,0.00020057,2]
[380143726,1755573049932,-151.0,0.000201,3]
[380143727,1755573049943,-800.0,0.00020126,2]
[380143728,1755573049952,-800.0,0.00020137,2]
[380143729,1755573049961,-800.0,0.00020154,2]
[380143730,1755573049970,-163.4005902,0.00020204,2]
[380143731,1755573049979,-151.0,0.00020208,2]
[380143732,1755573049988,-242.406547,0.00020208,2]
[380143733,1755573049997,-151.0,0.00020208,2]
[380143734,1755573050007,-151.0,0.00020208,2]
[380143735,1755573050016,-196.231333,0.00020208,2]
[380143736,1755573050024,-151.0,0.00020208,2]
[380143737,1755573050034,-151.0,0.00020208,2]
[380143738,1755573050043,-458.534596,0.00020208,2]
[380143739,1755573050052,-455.408369,0.00020208,2]
[380143740,1755573050061,-151.0,0.00020208,2]